[Event "Titled Tuesday Blitz May 9 Early 2023"]
[White "Remizov, Yaroslav"]
[Black "Hua, Lefong"]
[WhiteFideId "34134015"]
[BlackFideId "2602253"]
[WhiteElo "2400"]
[BlackElo "2711"]
[Result "1-0"]
[Round "09"]
[TimeControl "180+2"]
[Date "2023.05.09"]
[WhiteClock "0:00:12"]
[BlackClock "0:00:00"]

1. e4 {[%clk 0:02:59]}  c5 {[%clk 0:02:59]} 2. Nf3 {[%clk 0:02:59]}  g6 {[%clk 0:03:00]} 3. d4 {[%clk 0:02:58]}  cxd4 {[%clk 0:03:01]} 4. Qxd4 {[%clk 0:02:59]}  Nf6 {[%clk 0:03:01]} 5. e5 {[%clk 0:02:59]}  Nc6 {[%clk 0:03:01]} 6. Qa4 {[%clk 0:03:00]}  Nd5 {[%clk 0:03:01]} 7. Qe4 {[%clk 0:03:01]}  Nb6 {[%clk 0:03:01]} 8. Nc3 {[%clk 0:02:58]}  Bg7 {[%clk 0:03:01]} 9. Bf4 {[%clk 0:02:58]}  d5 {[%clk 0:02:57]} 10. exd6 {[%clk 0:02:57]}  Bf5 {[%clk 0:02:57]} 11. dxe7 {[%clk 0:02:56]}  Bxc3+ {[%clk 0:02:57]} 12. bxc3 {[%clk 0:02:55]}  Bxe4 {[%clk 0:02:55]} 13. exd8=Q+ {[%clk 0:02:55]}  Rxd8 {[%clk 0:02:56]} 14. Nd4 {[%clk 0:02:42]}  O-O {[%clk 0:02:47]} 15. O-O-O {[%clk 0:02:40]}  Rc8 {[%clk 0:02:29]} 16. f3 {[%clk 0:02:34]}  Bd5 {[%clk 0:02:19]} 17. h4 {[%clk 0:02:27]}  Bxa2 {[%clk 0:02:13]} 18. h5 {[%clk 0:02:25]}  Bc4 {[%clk 0:02:00]} 19. Nb5 {[%clk 0:02:07]}  Bxb5 {[%clk 0:01:54]} 20. Bxb5 {[%clk 0:02:07]}  Rfd8 {[%clk 0:01:50]} 21. hxg6 {[%clk 0:01:48]}  Rxd1+ {[%clk 0:01:39]} 22. Rxd1 {[%clk 0:01:49]}  hxg6 {[%clk 0:01:32]} 23. Bg5 {[%clk 0:01:42]}  Kg7 {[%clk 0:01:24]} 24. Rd6 {[%clk 0:01:41]}  a6 {[%clk 0:01:12]} 25. Bf6+ {[%clk 0:01:41]}  Kf8 {[%clk 0:01:12]} 26. Be2 {[%clk 0:01:18]}  Ke8 {[%clk 0:00:59]} 27. f4 {[%clk 0:01:10]}  Nd7 {[%clk 0:00:57]} 28. Bg4 {[%clk 0:01:10]}  Ncb8 {[%clk 0:00:58]} 29. Rd1 {[%clk 0:01:00]}  Rc6 {[%clk 0:00:54]} 30. Re1+ {[%clk 0:00:59]}  Kf8 {[%clk 0:00:51]} 31. Bd4 {[%clk 0:00:58]}  f5 {[%clk 0:00:50]} 32. Bf3 {[%clk 0:00:58]}  Rc7 {[%clk 0:00:45]} 33. Rh1 {[%clk 0:00:59]}  Nc6 {[%clk 0:00:39]} 34. Rh8+ {[%clk 0:00:56]}  Ke7 {[%clk 0:00:39]} 35. Rh7+ {[%clk 0:00:55]}  Kd6 {[%clk 0:00:36]} 36. Bf2 {[%clk 0:00:40]}  Nd8 {[%clk 0:00:27]} 37. Bd4 {[%clk 0:00:28]}  Ne6 {[%clk 0:00:24]} 38. Rh6 {[%clk 0:00:27]}  Nef8 {[%clk 0:00:16]} 39. Bh5 {[%clk 0:00:20]}  Kd5 {[%clk 0:00:13]} 40. Bxg6 {[%clk 0:00:19]}  Nxg6 {[%clk 0:00:12]} 41. Rxg6 {[%clk 0:00:20]}  Ke4 {[%clk 0:00:13]} 42. Re6+ {[%clk 0:00:16]}  Kxf4 {[%clk 0:00:11]} 43. Re7 {[%clk 0:00:16]}  Kg3 {[%clk 0:00:08]} 44. Rg7+ {[%clk 0:00:15]}  Kh4 {[%clk 0:00:06]} 45. Bb6 {[%clk 0:00:15]}  Nxb6 {[%clk 0:00:03]} 46. Rxc7 {[%clk 0:00:12]}  Kg3 {[%clk 0:00:03]} 47. Rg7+ {[%clk 0:00:12]}  Kf2 {[%clk 0:00:04]} 48. Rxb7 {[%clk 0:00:12]}  Nd5 {[%clk 0:00:04]} 49. c4 {[%clk 0:00:11]}  Ne3 {[%clk 0:00:01]} 50. c5 {[%clk 0:00:12]}  Kxg2 {[%clk 0:00:01]} 51. c6 {[%clk 0:00:12]}  Nd5 {[%clk 0:00:00]} 52. c7 {[%clk 0:00:12]} 1-0


[Site "https://www.chess.com"]

[Event "Titled Tuesday Blitz May 9 Early 2023"]
[White "Seemann, Jakub"]
[Black "Djordjevic, Vuk"]
[WhiteFideId "21874697"]
[BlackFideId "902098"]
[WhiteElo "2364"]
[BlackElo "2452"]
[Result "1-0"]
[Round "09"]
[TimeControl "180+2"]
[Date "2023.05.09"]
[WhiteClock "0:00:09"]
[BlackClock "0:00:03"]

1. e4 {[%clk 0:03:00]}  d5 {[%clk 0:03:00]} 2. exd5 {[%clk 0:03:00]}  Qxd5 {[%clk 0:03:01]} 3. Nc3 {[%clk 0:03:00]}  Qd6 {[%clk 0:03:01]} 4. d4 {[%clk 0:03:01]}  Nf6 {[%clk 0:03:02]} 5. g3 {[%clk 0:02:59]}  c6 {[%clk 0:03:02]} 6. Bf4 {[%clk 0:02:59]}  Qd8 {[%clk 0:03:02]} 7. Bg2 {[%clk 0:02:59]}  Bg4 {[%clk 0:03:02]} 8. Nge2 {[%clk 0:02:59]}  e6 {[%clk 0:03:02]} 9. h3 {[%clk 0:03:00]}  Bxe2 {[%clk 0:03:02]} 10. Qxe2 {[%clk 0:02:59]}  Qxd4 {[%clk 0:02:44]} 11. O-O {[%clk 0:02:59]}  Be7 {[%clk 0:02:39]} 12. Rad1 {[%clk 0:02:57]}  Qb6 {[%clk 0:02:36]} 13. b4 {[%clk 0:02:33]}  Qxb4 {[%clk 0:02:25]} 14. Ne4 {[%clk 0:01:58]}  Nxe4 {[%clk 0:01:19]} 15. Bxe4 {[%clk 0:01:59]}  Qc5 {[%clk 0:01:16]} 16. Rb1 {[%clk 0:01:53]}  b6 {[%clk 0:01:09]} 17. Be3 {[%clk 0:01:41]}  Qa5 {[%clk 0:01:08]} 18. Bd2 {[%clk 0:01:08]}  Qa3 {[%clk 0:00:54]} 19. Rb3 {[%clk 0:00:55]}  Qa4 {[%clk 0:00:45]} 20. Bc3 {[%clk 0:00:23]}  O-O {[%clk 0:00:45]} 21. Rd1 {[%clk 0:00:22]}  Rd8 {[%clk 0:00:23]} 22. Rxd8+ {[%clk 0:00:21]}  Bxd8 {[%clk 0:00:24]} 23. Qd3 {[%clk 0:00:18]}  Be7 {[%clk 0:00:18]} 24. Bxh7+ {[%clk 0:00:17]}  Kf8 {[%clk 0:00:18]} 25. Be4 {[%clk 0:00:17]}  Qa6 {[%clk 0:00:12]} 26. Qf3 {[%clk 0:00:15]}  Qc8 {[%clk 0:00:10]} 27. Qh5 {[%clk 0:00:12]}  Ke8 {[%clk 0:00:07]} 28. Bxg7 {[%clk 0:00:12]}  Nd7 {[%clk 0:00:05]} 29. Rf3 {[%clk 0:00:09]}  Nf6 {[%clk 0:00:02]} 30. Bxf6 {[%clk 0:00:09]}  Bxf6 {[%clk 0:00:02]} 31. Rxf6 {[%clk 0:00:10]}  Qc7 {[%clk 0:00:03]} 32. Qh8+ {[%clk 0:00:09]}  Ke7 {[%clk 0:00:03]} 33. Rxf7+ {[%clk 0:00:09]}  Kxf7 {[%clk 0:00:03]} 34. Qh7+ {[%clk 0:00:09]} 1-0


[Site "https://www.chess.com"]

[Event "Titled Tuesday Blitz May 9 Early 2023"]
[White "Sahib Singh"]
[Black "Morefield, Jason"]
[WhiteFideId "25618342"]
[BlackFideId "30920825"]
[WhiteElo "1934"]
[BlackElo "2171"]
[Result "1/2-1/2"]
[Round "09"]
[TimeControl "180+2"]
[Date "2023.05.09"]
[WhiteClock "0:00:30"]
[BlackClock "0:00:07"]

1. e4 {[%clk 0:03:00]}  d6 {[%clk 0:02:59]} 2. d4 {[%clk 0:03:00]}  Nf6 {[%clk 0:03:00]} 3. Nc3 {[%clk 0:03:00]}  g6 {[%clk 0:03:00]} 4. f4 {[%clk 0:02:57]}  Bg7 {[%clk 0:02:59]} 5. Nf3 {[%clk 0:02:57]}  c5 {[%clk 0:02:58]} 6. e5 {[%clk 0:02:53]}  Ng4 {[%clk 0:02:58]} 7. h3 {[%clk 0:02:51]}  cxd4 {[%clk 0:02:53]} 8. Qxd4 {[%clk 0:02:49]}  Nh6 {[%clk 0:02:42]} 9. g4 {[%clk 0:02:49]}  O-O {[%clk 0:02:39]} 10. Qe4 {[%clk 0:02:31]}  dxe5 {[%clk 0:02:30]} 11. fxe5 {[%clk 0:02:31]}  f5 {[%clk 0:02:30]} 12. exf6 {[%clk 0:02:31]}  exf6 {[%clk 0:02:30]} 13. Bc4+ {[%clk 0:02:31]}  Kh8 {[%clk 0:02:30]} 14. O-O {[%clk 0:02:31]}  f5 {[%clk 0:02:30]} 15. Qd5 {[%clk 0:02:24]}  Qb6+ {[%clk 0:02:21]} 16. Kg2 {[%clk 0:02:22]}  fxg4 {[%clk 0:02:20]} 17. hxg4 {[%clk 0:02:21]}  Bxg4 {[%clk 0:02:20]} 18. Bxh6 {[%clk 0:02:17]}  Bxh6 {[%clk 0:02:13]} 19. Ne5 {[%clk 0:02:17]}  Bf5 {[%clk 0:01:45]} 20. Nf7+ {[%clk 0:02:04]}  Rxf7 {[%clk 0:01:45]} 21. Qxf7 {[%clk 0:02:04]}  Nc6 {[%clk 0:01:40]} 22. Rae1 {[%clk 0:02:02]}  Qd8 {[%clk 0:01:23]} 23. Ne4 {[%clk 0:01:56]}  Ne5 {[%clk 0:01:12]} 24. Qd5 {[%clk 0:01:21]}  Nxc4 {[%clk 0:01:03]} 25. Qxc4 {[%clk 0:01:22]}  Qh4 {[%clk 0:01:00]} 26. Qc3+ {[%clk 0:01:16]}  Bg7 {[%clk 0:00:57]} 27. Qf3 {[%clk 0:01:16]}  Re8 {[%clk 0:00:40]} 28. Nf2 {[%clk 0:00:55]}  Rf8 {[%clk 0:00:34]} 29. Qg3 {[%clk 0:00:54]}  Qxg3+ {[%clk 0:00:27]} 30. Kxg3 {[%clk 0:00:54]}  Bxb2 {[%clk 0:00:24]} 31. Re7 {[%clk 0:00:53]}  Kg8 {[%clk 0:00:12]} 32. Ng4 {[%clk 0:00:43]}  Bg7 {[%clk 0:00:08]} 33. Ne3 {[%clk 0:00:41]}  Bc8 {[%clk 0:00:02]} 34. Rxf8+ {[%clk 0:00:42]}  Bxf8 {[%clk 0:00:03]} 35. Re8 {[%clk 0:00:42]}  Bd7 {[%clk 0:00:03]} 36. Rb8 {[%clk 0:00:43]}  Bc6 {[%clk 0:00:02]} 37. Nc4 {[%clk 0:00:43]}  Kf7 {[%clk 0:00:02]} 38. Ne5+ {[%clk 0:00:42]}  Kg7 {[%clk 0:00:02]} 39. Nxc6 {[%clk 0:00:41]}  Bd6+ {[%clk 0:00:02]} 40. Kg4 {[%clk 0:00:40]}  Bxb8 {[%clk 0:00:02]} 41. Nxb8 {[%clk 0:00:39]}  Kf6 {[%clk 0:00:03]} 42. Nd7+ {[%clk 0:00:40]}  Ke7 {[%clk 0:00:02]} 43. Nc5 {[%clk 0:00:39]}  b6 {[%clk 0:00:02]} 44. Ne4 {[%clk 0:00:38]}  Kd7 {[%clk 0:00:02]} 45. Nf6+ {[%clk 0:00:38]}  Kc6 {[%clk 0:00:03]} 46. Nxh7 {[%clk 0:00:39]}  Kc5 {[%clk 0:00:03]} 47. Nf8 {[%clk 0:00:39]}  Kc4 {[%clk 0:00:03]} 48. Nxg6 {[%clk 0:00:38]}  Kc3 {[%clk 0:00:04]} 49. Ne5 {[%clk 0:00:38]}  Kxc2 {[%clk 0:00:04]} 50. Nc6 {[%clk 0:00:38]}  a5 {[%clk 0:00:04]} 51. Kf4 {[%clk 0:00:35]}  Kb2 {[%clk 0:00:04]} 52. Ke4 {[%clk 0:00:35]}  Kxa2 {[%clk 0:00:05]} 53. Kd3 {[%clk 0:00:36]}  Kb3 {[%clk 0:00:05]} 54. Nd4+ {[%clk 0:00:35]}  Kb2 {[%clk 0:00:05]} 55. Kc4 {[%clk 0:00:35]}  a4 {[%clk 0:00:05]} 56. Nb5 {[%clk 0:00:29]}  a3 {[%clk 0:00:05]} 57. Nxa3 {[%clk 0:00:29]}  Kxa3 {[%clk 0:00:06]} 58. Kb5 {[%clk 0:00:29]}  Kb3 {[%clk 0:00:07]} 59. Kxb6 {[%clk 0:00:30]} 1/2-1/2


[Site "https://www.chess.com"]

[Event "Titled Tuesday Blitz May 9 Early 2023"]
[White "HamedWafa4"]
[Black "Salinas Herrera, Pablo"]
[BlackFideId "3407128"]
[WhiteElo "2560"]
[BlackElo "2546"]
[Result "0-1"]
[Round "09"]
[TimeControl "180+2"]
[Date "2023.05.09"]
[WhiteClock "0:00:00"]
[BlackClock "0:00:20"]

1. e4 {[%clk 0:03:00]}  c5 {[%clk 0:02:57]} 2. Nf3 {[%clk 0:02:59]}  e6 {[%clk 0:02:58]} 3. d4 {[%clk 0:02:57]}  cxd4 {[%clk 0:02:59]} 4. Nxd4 {[%clk 0:02:58]}  a6 {[%clk 0:02:52]} 5. g3 {[%clk 0:02:55]}  d6 {[%clk 0:02:50]} 6. Bg2 {[%clk 0:02:55]}  Be7 {[%clk 0:02:51]} 7. Nc3 {[%clk 0:02:55]}  Nf6 {[%clk 0:02:51]} 8. O-O {[%clk 0:02:55]}  O-O {[%clk 0:02:52]} 9. Re1 {[%clk 0:02:54]}  Qc7 {[%clk 0:02:52]} 10. h3 {[%clk 0:02:36]}  Nc6 {[%clk 0:02:52]} 11. Nxc6 {[%clk 0:02:36]}  bxc6 {[%clk 0:02:52]} 12. Na4 {[%clk 0:02:34]}  Rb8 {[%clk 0:02:51]} 13. b3 {[%clk 0:02:33]}  e5 {[%clk 0:02:46]} 14. c4 {[%clk 0:02:32]}  Be6 {[%clk 0:02:44]} 15. Bb2 {[%clk 0:02:29]}  Nd7 {[%clk 0:02:42]} 16. Rc1 {[%clk 0:02:23]}  f6 {[%clk 0:02:41]} 17. Bf1 {[%clk 0:02:10]}  Rfd8 {[%clk 0:02:40]} 18. Qe2 {[%clk 0:01:59]}  a5 {[%clk 0:02:29]} 19. Red1 {[%clk 0:01:57]}  Nf8 {[%clk 0:02:24]} 20. Bg2 {[%clk 0:01:55]}  Bf7 {[%clk 0:02:24]} 21. Rd2 {[%clk 0:01:41]}  Ne6 {[%clk 0:02:23]} 22. Rcd1 {[%clk 0:01:22]}  c5 {[%clk 0:02:18]} 23. Rf1 {[%clk 0:01:09]}  Nd4 {[%clk 0:02:18]} 24. Bxd4 {[%clk 0:01:09]}  cxd4 {[%clk 0:02:18]} 25. Nb2 {[%clk 0:01:03]}  Bf8 {[%clk 0:02:14]} 26. Nd3 {[%clk 0:01:03]}  a4 {[%clk 0:02:14]} 27. Rb1 {[%clk 0:01:01]}  axb3 {[%clk 0:02:14]} 28. axb3 {[%clk 0:01:02]}  Rdc8 {[%clk 0:01:34]} 29. Rc2 {[%clk 0:00:56]}  Qd8 {[%clk 0:01:30]} 30. Rcc1 {[%clk 0:00:50]}  g6 {[%clk 0:01:28]} 31. h4 {[%clk 0:00:50]}  h5 {[%clk 0:01:25]} 32. Bh3 {[%clk 0:00:50]}  Rc7 {[%clk 0:01:24]} 33. Kh2 {[%clk 0:00:39]}  Bh6 {[%clk 0:01:24]} 34. f4 {[%clk 0:00:40]}  Qe7 {[%clk 0:01:19]} 35. Rf1 {[%clk 0:00:39]}  Kh7 {[%clk 0:01:16]} 36. f5 {[%clk 0:00:30]}  g5 {[%clk 0:01:16]} 37. g4 {[%clk 0:00:16]}  gxh4 {[%clk 0:01:15]} 38. gxh5 {[%clk 0:00:16]}  Rcb7 {[%clk 0:01:05]} 39. Qd1 {[%clk 0:00:09]}  Be3 {[%clk 0:00:45]} 40. Qg4 {[%clk 0:00:04]}  Rxb3 {[%clk 0:00:38]} 41. Rxb3 {[%clk 0:00:05]}  Rxb3 {[%clk 0:00:39]} 42. Nf2 {[%clk 0:00:05]}  Bf4+ {[%clk 0:00:37]} 43. Kh1 {[%clk 0:00:05]}  Bg5 {[%clk 0:00:36]} 44. Rg1 {[%clk 0:00:04]}  Qe8 {[%clk 0:00:33]} 45. Qd1 {[%clk 0:00:01]}  Rb2 {[%clk 0:00:23]} 46. Rg2 {[%clk 0:00:01]}  Bxh5 {[%clk 0:00:23]} 47. Qa1 {[%clk 0:00:02]}  Qb8 {[%clk 0:00:20]} 48. Kh2 {[%clk 0:00:00]}  Bf4+ {[%clk 0:00:20]} 0-1


[Site "https://www.chess.com"]

[Event "Titled Tuesday Blitz May 9 Early 2023"]
[White "Ambartsumova, Karina"]
[Black "Gharibyan, Mamikon"]
[WhiteFideId "4166299"]
[BlackFideId "13308300"]
[WhiteElo "2240"]
[BlackElo "2445"]
[Result "0-1"]
[Round "09"]
[TimeControl "180+2"]
[Date "2023.05.09"]
[WhiteClock "0:00:07"]
[BlackClock "0:00:53"]

1. e4 {[%clk 0:02:59]}  c5 {[%clk 0:02:59]} 2. Nf3 {[%clk 0:02:59]}  Nc6 {[%clk 0:02:58]} 3. d4 {[%clk 0:02:58]}  cxd4 {[%clk 0:02:59]} 4. Nxd4 {[%clk 0:02:59]}  e6 {[%clk 0:02:58]} 5. Nc3 {[%clk 0:02:58]}  a6 {[%clk 0:02:52]} 6. Nxc6 {[%clk 0:02:55]}  bxc6 {[%clk 0:02:46]} 7. Bd3 {[%clk 0:02:55]}  e5 {[%clk 0:02:46]} 8. O-O {[%clk 0:02:53]}  Nf6 {[%clk 0:02:46]} 9. f4 {[%clk 0:02:50]}  Bc5+ {[%clk 0:02:44]} 10. Kh1 {[%clk 0:02:49]}  d6 {[%clk 0:02:39]} 11. f5 {[%clk 0:02:32]}  h6 {[%clk 0:02:27]} 12. Na4 {[%clk 0:02:27]}  Bd4 {[%clk 0:02:22]} 13. c3 {[%clk 0:02:25]}  Ba7 {[%clk 0:02:22]} 14. Qe2 {[%clk 0:02:24]}  a5 {[%clk 0:02:20]} 15. Be3 {[%clk 0:02:20]}  O-O {[%clk 0:02:19]} 16. Rad1 {[%clk 0:02:19]}  Qe7 {[%clk 0:02:19]} 17. Bc2 {[%clk 0:01:44]}  d5 {[%clk 0:02:11]} 18. Nb6 {[%clk 0:01:12]}  Bxb6 {[%clk 0:02:08]} 19. Bxb6 {[%clk 0:01:13]}  Ba6 {[%clk 0:02:08]} 20. Qf2 {[%clk 0:01:03]}  Bxf1 {[%clk 0:02:03]} 21. Bc5 {[%clk 0:01:03]}  Qb7 {[%clk 0:02:01]} 22. Bxf8 {[%clk 0:00:56]}  Rxf8 {[%clk 0:01:56]} 23. Rxf1 {[%clk 0:00:47]}  Qxb2 {[%clk 0:01:54]} 24. exd5 {[%clk 0:00:47]}  cxd5 {[%clk 0:01:54]} 25. Bb3 {[%clk 0:00:38]}  Qxc3 {[%clk 0:01:51]} 26. Qa7 {[%clk 0:00:32]}  e4 {[%clk 0:01:44]} 27. h3 {[%clk 0:00:17]}  Nh5 {[%clk 0:01:41]} 28. Rd1 {[%clk 0:00:17]}  Ng3+ {[%clk 0:01:38]} 29. Kh2 {[%clk 0:00:17]}  Qe5 {[%clk 0:01:33]} 30. Rxd5 {[%clk 0:00:17]}  Qf4 {[%clk 0:01:33]} 31. Rd7 {[%clk 0:00:16]}  Ne2+ {[%clk 0:01:17]} 32. Kh1 {[%clk 0:00:16]}  e3 {[%clk 0:01:18]} 33. Rd1 {[%clk 0:00:06]}  Ng3+ {[%clk 0:01:15]} 34. Kg1 {[%clk 0:00:04]}  Qf2+ {[%clk 0:01:05]} 35. Kh2 {[%clk 0:00:04]}  Nf1+ {[%clk 0:01:03]} 36. Rxf1 {[%clk 0:00:03]}  Qxf1 {[%clk 0:01:04]} 37. Qxe3 {[%clk 0:00:03]}  Qxf5 {[%clk 0:01:03]} 38. Qg3 {[%clk 0:00:03]}  Qg5 {[%clk 0:01:00]} 39. Qc7 {[%clk 0:00:04]}  h5 {[%clk 0:00:58]} 40. a4 {[%clk 0:00:04]}  h4 {[%clk 0:00:58]} 41. Bc4 {[%clk 0:00:05]}  Qg3+ {[%clk 0:00:55]} 42. Qxg3 {[%clk 0:00:05]}  hxg3+ {[%clk 0:00:56]} 43. Kxg3 {[%clk 0:00:06]}  Rd8 {[%clk 0:00:57]} 44. Bb5 {[%clk 0:00:07]}  Rd4 {[%clk 0:00:57]} 45. Kf3 {[%clk 0:00:07]}  Kh7 {[%clk 0:00:57]} 46. Ke3 {[%clk 0:00:07]}  Rb4 {[%clk 0:00:58]} 47. Bd7 {[%clk 0:00:08]}  f6 {[%clk 0:00:58]} 48. Bc6 {[%clk 0:00:08]}  Kh6 {[%clk 0:00:58]} 49. Kf3 {[%clk 0:00:08]}  Kg5 {[%clk 0:00:59]} 50. g3 {[%clk 0:00:08]}  Rb3+ {[%clk 0:00:57]} 51. Kg2 {[%clk 0:00:09]}  f5 {[%clk 0:00:58]} 52. Bd7 {[%clk 0:00:08]}  Kf6 {[%clk 0:00:53]} 53. Bc6 {[%clk 0:00:07]}  Ke5 {[%clk 0:00:52]} 54. Bd7 {[%clk 0:00:07]}  f4 {[%clk 0:00:53]} 55. gxf4+ {[%clk 0:00:07]}  Kxf4 {[%clk 0:00:53]} 56. Kf2 {[%clk 0:00:07]}  Rb2+ {[%clk 0:00:53]} 57. Ke1 {[%clk 0:00:08]}  g5 {[%clk 0:00:54]} 58. Kd1 {[%clk 0:00:08]}  Rh2 {[%clk 0:00:53]} 59. Ke1 {[%clk 0:00:08]}  Kg3 {[%clk 0:00:52]} 60. Kf1 {[%clk 0:00:09]}  Rh1+ {[%clk 0:00:51]} 61. Ke2 {[%clk 0:00:08]}  Rxh3 {[%clk 0:00:52]} 62. Bxh3 {[%clk 0:00:09]}  Kxh3 {[%clk 0:00:53]} 63. Kf1 {[%clk 0:00:09]}  Kh2 {[%clk 0:00:52]} 64. Kf2 {[%clk 0:00:07]}  g4 {[%clk 0:00:53]} 0-1


[Site "https://www.chess.com"]

[Event "Titled Tuesday Blitz May 9 Early 2023"]
[White "Wagner, Dennis"]
[Black "Girya, Olga"]
[WhiteFideId "24650684"]
[BlackFideId "4195752"]
[WhiteElo "2478"]
[BlackElo "2263"]
[Result "0-1"]
[Round "09"]
[TimeControl "180+2"]
[Date "2023.05.09"]
[WhiteClock "0:00:05"]
[BlackClock "0:00:11"]

1. d4 {[%clk 0:03:00]}  Nf6 {[%clk 0:02:57]} 2. Nf3 {[%clk 0:03:01]}  d5 {[%clk 0:02:57]} 3. c4 {[%clk 0:03:02]}  e6 {[%clk 0:02:56]} 4. g3 {[%clk 0:03:02]}  Be7 {[%clk 0:02:56]} 5. Bg2 {[%clk 0:03:03]}  O-O {[%clk 0:02:56]} 6. O-O {[%clk 0:03:03]}  dxc4 {[%clk 0:02:56]} 7. Qa4 {[%clk 0:03:04]}  a6 {[%clk 0:02:56]} 8. Qxc4 {[%clk 0:03:05]}  b5 {[%clk 0:02:55]} 9. Qc2 {[%clk 0:03:05]}  Bb7 {[%clk 0:02:55]} 10. Bg5 {[%clk 0:03:06]}  Nbd7 {[%clk 0:02:52]} 11. Bxf6 {[%clk 0:03:07]}  Nxf6 {[%clk 0:02:45]} 12. Nbd2 {[%clk 0:03:07]}  Rc8 {[%clk 0:02:40]} 13. Nb3 {[%clk 0:03:07]}  c5 {[%clk 0:02:19]} 14. dxc5 {[%clk 0:03:08]}  Be4 {[%clk 0:02:19]} 15. Qc3 {[%clk 0:03:08]}  Bd5 {[%clk 0:01:46]} 16. Rfc1 {[%clk 0:03:07]}  Ne4 {[%clk 0:01:39]} 17. Qe3 {[%clk 0:02:57]}  a5 {[%clk 0:01:07]} 18. Ne5 {[%clk 0:02:46]}  Nf6 {[%clk 0:00:57]} 19. c6 {[%clk 0:01:56]}  Bxg2 {[%clk 0:00:55]} 20. Kxg2 {[%clk 0:01:57]}  a4 {[%clk 0:00:52]} 21. Nc5 {[%clk 0:01:48]}  Qd5+ {[%clk 0:00:52]} 22. f3 {[%clk 0:01:49]}  Bd6 {[%clk 0:00:22]} 23. Ncd3 {[%clk 0:01:39]}  Rfd8 {[%clk 0:00:13]} 24. a3 {[%clk 0:01:29]}  Ne8 {[%clk 0:00:13]} 25. Rc3 {[%clk 0:01:08]}  Bxe5 {[%clk 0:00:13]} 26. Nxe5 {[%clk 0:00:49]}  f6 {[%clk 0:00:13]} 27. Nd3 {[%clk 0:00:46]}  Rxc6 {[%clk 0:00:11]} 28. Nb4 {[%clk 0:00:46]}  Rxc3 {[%clk 0:00:11]} 29. Qxc3 {[%clk 0:00:31]}  Qd2 {[%clk 0:00:11]} 30. Kf2 {[%clk 0:00:20]}  Qxc3 {[%clk 0:00:11]} 31. bxc3 {[%clk 0:00:21]}  Rc8 {[%clk 0:00:11]} 32. Na2 {[%clk 0:00:08]}  Nd6 {[%clk 0:00:11]} 33. Rb1 {[%clk 0:00:08]}  Rc5 {[%clk 0:00:10]} 34. Ke3 {[%clk 0:00:08]}  Nc4+ {[%clk 0:00:10]} 35. Kd4 {[%clk 0:00:08]}  Rd5+ {[%clk 0:00:10]} 36. Ke4 {[%clk 0:00:09]}  Nxa3 {[%clk 0:00:11]} 37. Nb4 {[%clk 0:00:06]}  Nxb1 {[%clk 0:00:10]} 38. Nxd5 {[%clk 0:00:05]}  exd5+ {[%clk 0:00:11]} 39. Kxd5 {[%clk 0:00:05]}  a3 {[%clk 0:00:11]} 40. Kc5 {[%clk 0:00:05]}  a2 {[%clk 0:00:11]} 0-1


[Site "https://www.chess.com"]

[Event "Titled Tuesday Blitz May 9 Early 2023"]
[White "Kvaloy, Aksel Bu"]
[Black "Nikologorskiy, Konstantin"]
[WhiteFideId "1528815"]
[BlackFideId "24111708"]
[WhiteElo "2242"]
[BlackElo "2273"]
[Result "1-0"]
[Round "09"]
[TimeControl "180+2"]
[Date "2023.05.09"]
[WhiteClock "0:00:30"]
[BlackClock "0:00:00"]

1. e4 {[%clk 0:03:00]}  c5 {[%clk 0:02:53]} 2. Nf3 {[%clk 0:02:56]}  d6 {[%clk 0:02:54]} 3. d4 {[%clk 0:02:56]}  cxd4 {[%clk 0:02:54]} 4. Nxd4 {[%clk 0:02:57]}  Nf6 {[%clk 0:02:55]} 5. Nc3 {[%clk 0:02:57]}  a6 {[%clk 0:02:55]} 6. Bg5 {[%clk 0:02:58]}  Nbd7 {[%clk 0:02:55]} 7. Bc4 {[%clk 0:02:57]}  e6 {[%clk 0:02:51]} 8. Qd2 {[%clk 0:02:48]}  Qb6 {[%clk 0:02:48]} 9. Bxf6 {[%clk 0:02:44]}  Nxf6 {[%clk 0:02:46]} 10. Bb3 {[%clk 0:02:44]}  Be7 {[%clk 0:02:43]} 11. O-O-O {[%clk 0:02:44]}  Bd7 {[%clk 0:02:37]} 12. f4 {[%clk 0:02:41]}  O-O {[%clk 0:02:30]} 13. Kb1 {[%clk 0:02:36]}  Qc5 {[%clk 0:02:19]} 14. Rhe1 {[%clk 0:01:57]}  Bc6 {[%clk 0:01:52]} 15. e5 {[%clk 0:01:52]}  Ne8 {[%clk 0:01:45]} 16. f5 {[%clk 0:01:46]}  dxe5 {[%clk 0:01:14]} 17. Nxc6 {[%clk 0:01:39]}  Qxc6 {[%clk 0:01:04]} 18. fxe6 {[%clk 0:01:39]}  fxe6 {[%clk 0:00:58]} 19. Rxe5 {[%clk 0:01:39]}  Nc7 {[%clk 0:00:59]} 20. Qd7 {[%clk 0:01:33]}  Qxd7 {[%clk 0:00:50]} 21. Rxd7 {[%clk 0:01:34]}  Rf1+ {[%clk 0:00:48]} 22. Nd1 {[%clk 0:01:15]}  Rd8 {[%clk 0:00:32]} 23. Rxd8+ {[%clk 0:01:09]}  Bxd8 {[%clk 0:00:33]} 24. c3 {[%clk 0:01:10]}  Rg1 {[%clk 0:00:32]} 25. Re2 {[%clk 0:01:04]}  Kf7 {[%clk 0:00:14]} 26. Kc2 {[%clk 0:01:03]}  Bf6 {[%clk 0:00:13]} 27. Ne3 {[%clk 0:01:01]}  Rh1 {[%clk 0:00:13]} 28. h3 {[%clk 0:01:00]}  b5 {[%clk 0:00:13]} 29. a4 {[%clk 0:00:59]}  bxa4 {[%clk 0:00:11]} 30. Bxa4 {[%clk 0:01:00]}  Nd5 {[%clk 0:00:11]} 31. Nxd5 {[%clk 0:00:59]}  exd5 {[%clk 0:00:12]} 32. Bb3 {[%clk 0:01:00]}  a5 {[%clk 0:00:04]} 33. Bxd5+ {[%clk 0:01:00]}  Kf8 {[%clk 0:00:04]} 34. Bf3 {[%clk 0:00:57]}  Ra1 {[%clk 0:00:05]} 35. Re4 {[%clk 0:00:56]}  g6 {[%clk 0:00:05]} 36. Rc4 {[%clk 0:00:56]}  Kg7 {[%clk 0:00:05]} 37. Rc7+ {[%clk 0:00:56]}  Kh6 {[%clk 0:00:06]} 38. Ra7 {[%clk 0:00:54]}  a4 {[%clk 0:00:05]} 39. Bc6 {[%clk 0:00:52]}  a3 {[%clk 0:00:05]} 40. Rxa3 {[%clk 0:00:52]}  Rf1 {[%clk 0:00:05]} 41. Bf3 {[%clk 0:00:51]}  Rf2+ {[%clk 0:00:05]} 42. Kb1 {[%clk 0:00:51]}  Kg5 {[%clk 0:00:04]} 43. Ra4 {[%clk 0:00:50]}  h5 {[%clk 0:00:04]} 44. Re4 {[%clk 0:00:44]}  Bg7 {[%clk 0:00:01]} 45. Rc4 {[%clk 0:00:42]}  Rf1+ {[%clk 0:00:02]} 46. Ka2 {[%clk 0:00:41]}  Rf2 {[%clk 0:00:03]} 47. Ka3 {[%clk 0:00:42]}  Kh6 {[%clk 0:00:01]} 48. b4 {[%clk 0:00:42]}  g5 {[%clk 0:00:02]} 49. Rc6+ {[%clk 0:00:42]}  Kh7 {[%clk 0:00:02]} 50. Bxh5 {[%clk 0:00:41]}  Rxg2 {[%clk 0:00:01]} 51. Bg6+ {[%clk 0:00:42]}  Kg8 {[%clk 0:00:02]} 52. Rc7 {[%clk 0:00:38]}  Rg3 {[%clk 0:00:02]} 53. Kb3 {[%clk 0:00:35]}  Rxh3 {[%clk 0:00:01]} 54. b5 {[%clk 0:00:35]}  Rh6 {[%clk 0:00:01]} 55. Be4 {[%clk 0:00:32]}  g4 {[%clk 0:00:01]} 56. Bc6 {[%clk 0:00:32]}  g3 {[%clk 0:00:01]} 57. b6 {[%clk 0:00:33]}  Rxc6 {[%clk 0:00:01]} 58. Rxc6 {[%clk 0:00:33]}  Kh7 {[%clk 0:00:00]} 59. Rc4 {[%clk 0:00:30]} 1-0


[Site "https://www.chess.com"]